[Event "Grand Prix Romania 1st Stage 2024"]
[Site "Bucuresti"]
[Date "2024.03.23"]
[Round "3.24"]
[White "Tudor, Henry Edward"]
[Black "Mikhalevski, Victor"]
[Result "0-1"]
[ECO "D85"]
[WhiteElo "2262"]
[BlackElo "2514"]
[Annotator "TA"]
[PlyCount "160"]
[EventDate "2024.03.20"]
[EventType "swiss"]
[EventCountry "ROU"]
[SourceTitle "playchess.com"]
[Source "ChessBase"]
[SourceQuality "1"]
[TimeControl "900+5"]

{[%evp 12,160,31,5,23,0,0,0,17,10,18,-8,0,-14,0,-12,0,-27,0,16,26,16,37,41,21,13,23,28,52,45,55,18,9,25,37,29,34,0,0,-45,-57,-45,-66,-58,-23,-119,-104,-109,-114,-116,-99,-128,-127,-163,-130,-156,16,26,18,10,22,0,113,110,235,0,0,-39,-32,-22,0,0,0,0,0,0,0,0,0,0,0,0,0,0,0,0,0,0,187,180,167,0,0,0,629,0,0,0,0,0,0,0,0,0,0,0,0,-55,-56,-91,-91,-187,-164,-331,-331,-331,-312,-29963,-29965,-29965,-29964,-29962,-29963,-29965,-29966,-29960,-29961,-29951,-5277,-12845,-12847,-12278,-10305,-6079,-1325,-8325,-5210,-29978,-5274,-1685,-1283,-29977,-29975,-29975,-29976,-29975,-29974,-29983,-29984,-29984,-29985]} 1. d4 {[%emt 0:00:01]} Nf6 {[%emt 0:00:03]} 2. c4 {[%emt 0:00:02]} g6 {[%emt 0:00:02]} 3. Nc3 {[%emt 0:00:03]} d5 {[%emt 0:00:01]} 4. cxd5 {[%emt 0:00:02]} Nxd5 {[%emt 0:00:02]} 5. e4 {[%emt 0:00:01]} Nxc3 {[%emt 0:00:01]} 6. bxc3 {[%emt 0:00:01]} Bg7 {[%emt 0:00:01]} 7. Qa4+ {[%emt 0:00:01]} Qd7 {[%emt 0:00:05]} 8. Qa3 {[%emt 0:00:01]} b6 {[%emt 0:00:07]} 9. Nf3 {[%emt 0:00:40]} Bb7 {[%emt 0:00:15] Die Stellung ist ausgeglichen.} 10. Bd3 {[%emt 0:00:04]} c5 {[%emt 0:00:07]} 11. Bb2 {[%emt 0:06:16]} O-O {[%emt 0:01:43]} 12. O-O {[%emt 0:00:06]} Rc8 {[%emt 0:02:45]} 13. Rad1 {[%emt 0:01:30]} e6 {[%emt 0:00:04]} 14. Ba1 {[%emt 0:01:40]} c4 {[%emt 0:01:17]} 15. Bc2 {[%emt 0:00:02]} Nc6 {[%emt 0:00:02]} 16. Qc1 {[%emt 0:00:29]} b5 {[%emt 0:00:30]} 17. h4 {[%emt 0:00:16]} a5 {[%emt 0:00:19] [#]} 18. h5 $1 {[%emt 0:00:52]} Qe7 {[%emt 0:00:50]} 19. Rfe1 {[%emt 0:00:21]} e5 {[%emt 0:00:15]} 20. d5 {[%emt 0:00:26]} Nb8 {[%emt 0:00:09]} 21. Qb1 {[%emt 0:00:57]} Qc5 {[%emt 0:00:59]} 22. Bb2 {[%emt 0:00:15][%cal Ba1b2,Bb2c1,Bc1e3][%mdl 32]} Nd7 {[%emt 0:00:02]} 23. Bc1 {[%emt 0:00:07]} b4 {[%emt 0:00:06]} 24. Be3 {[%emt 0:01:24]} Qd6 {[%emt 0:00:09]} 25. h6 {[%emt 0:01:04]} Bf8 {[%emt 0:00:09]} 26. Ba4 {[%emt 0:00:09]} f6 {[%emt 0:00:50]} 27. Qc1 {[%emt 0:00:23]} Nc5 {[%emt 0:00:06]} 28. Bc2 {[%emt 0:00:01]} (28. Bxc5 $11 Rxc5 29. Qe3) 28... Rab8 {[%emt 0:00:16]} 29. Qd2 {[%emt 0:00:08]} Ba6 {[%emt 0:00:04]} 30. Rb1 {[%emt 0:00:01]} Nd3 {[%emt 0:00:25] Es drohte Rec1} 31. Red1 {[%emt 0:00:10]} Qd7 {[%emt 0:00:08]} 32. Ne1 {[%emt 0:00:03]} bxc3 $1 {[%emt 0:00:16]} 33. Qe2 {[%emt 0:00:08]} Nf4 $2 {[%emt 0:00:51] Schwarz steht deutlich aktiver.} ({Günstiger ist} 33... Nb2 $17 34. Rdc1 Ba3) 34. Bxf4 $11 {[%emt 0:00:04]} exf4 {[%emt 0:00:01]} 35. Qf3 {[%emt 0:00:05][%csl LRc3,LRf4]} Bxh6 36. Qxc3 {[%emt 0:00:01]} Rxb1 {[%emt 0:00:36]} (36... Qd6 $11) 37. Rxb1 $16 {[%emt 0:00:10]} Qd8 {[%emt 0:00:03]} (37... Qd6 $16) 38. Ba4 $2 {[%emt 0:00:04]} ({Weiss braucht} 38. Qh3 $1 $18 {[%cal Rh3h6]} Kg7 39. Qe6) 38... Bf8 $11 {[%emt 0:00:04]} 39. a3 {[%emt 0:00:12] Wehrt Bb4 ab} Bd6 {[%emt 0:00:04]} 40. Nf3 {[%emt 0:00:00] Wehrt Be5 ab} g5 {[%emt 0:00:09]} 41. Nh2 {[%emt 0:00:04]} Be5 {[%emt 0:00:03]} 42. Qc2 {[%emt 0:00:01]} (42. Qh3 $5 Ra8 $8 43. Nf3 $16) 42... Qd6 {[%emt 0:00:16]} 43. Nf3 {[%emt 0:00:05]} c3 {[%emt 0:00:10]} 44. Nxe5 {[%emt 0:00:06]} fxe5 {[%emt 0:00:10]} 45. Bc6 {[%emt 0:00:07]} Qxa3 {[%emt 0:00:10]} 46. Rb3 {[%emt 0:00:03]} Qa1+ {[%emt 0:00:39]} 47. Rb1 {[%emt 0:00:01]} Qa3 {[%emt 0:00:05]} 48. Rb3 {[%emt 0:00:00]} Qc5 {[%emt 0:00:16]} 49. Rxc3 {[%emt 0:00:13]} Qd4 {[%emt 0:00:01] [#]} (49... Qb4 $1 $11) 50. d6 $1 $18 {[%emt 0:00:08][%cal Bd5d6,Bd6d7][%mdl 1568] Weiss droht Bd5+ und Matt. Weiss hat starke Kompensation.} Kg7 {[%emt 0:00:08]} 51. d7 {[%emt 0:00:05]} Rd8 {[%emt 0:00:08]} 52. Rc5 {[%emt 0:00:06]} Bd3 $2 {[%emt 0:00:04][%mdl 8192]} (52... g4 $11) 53. Qc3 $2 {[%emt 0:00:05]} (53. Qc1 $1 $18) 53... Qxc3 $11 54. Rxc3 {[%emt 0:00:00][%mdl 4096] Endspiel. KRB-KRB} Be2 {[%emt 0:00:30]} 55. Rc5 {[%emt 0:00:07]} (55. f3 $5 Bd1 $8 56. Bb5 $11 (56. Rc5 Kf6 $16)) 55... Kf6 {[%emt 0:00:06]} 56. Rxa5 {[%emt 0:00:02]} Bg4 {[%emt 0:00:02]} 57. Ra6 {[%emt 0:00:10]} Ke7 {[%emt 0:00:04]} 58. Ra5 {[%emt 0:00:06]} Kd6 {[%emt 0:00:08]} 59. Ra6 {[%emt 0:00:01]} ({Besser ist} 59. Ba4 $11) 59... Kc5 $1 $15 {[%emt 0:00:15]} (59... Bxd7 60. Bxd7+ Kxd7 61. Rh6 $11) 60. Ba4 {[%emt 0:00:09]} Bxd7 {[%emt 0:00:04]} 61. Bxd7 {[%emt 0:00:05]} (61. Ra5+ $17 Kb4 62. Rxe5 Kxa4 (62... Bxa4 $2 63. Rxg5 Rf8 64. Rg7 $17) 63. Rd5) 61... Rxd7 $17 {[%emt 0:00:03] KR-KR} 62. Re6 $2 {[%emt 0:00:04] [#]} (62. f3) 62... Kd4 $1 $19 {[%emt 0:00:06][%cal Og5g4]} 63. f3 {[%emt 0:00:03]} g4 {[%emt 0:00:10]} 64. Kh2 $2 {[%emt 0:00:08]} (64. fxg4 $19 Rg7 (64... Kxe4 65. Kf2 $17) 65. Kf2) 64... gxf3 65. gxf3 {[%emt 0:00:00] [#]} Rg7 $1 {[%emt 0:00:18]} 66. Re8 {[%emt 0:00:09]} Rg5 {[%emt 0:00:05]} 67. Ra8 {[%emt 0:00:04]} Ke3 {[%emt 0:00:01]} 68. Ra3+ {[%emt 0:00:02]} Kf2 {[%emt 0:00:01][%cal Rg5h5]} 69. Kh3 {[%emt 0:00:05]} Rg3+ {[%emt 0:00:09]} 70. Kh4 {[%emt 0:00:01]} Rxf3 71. Ra2+ Ke3 {[%emt 0:00:07]} 72. Kg4 {[%emt 0:00:01]} Rf2 {[%emt 0:00:10]} (72... Kxe4 73. Ra4+ Ke3 74. Ra3+ Ke4 75. Ra4+ (75. Rxf3 h5+ 76. Kxh5 Kxf3 77. Kg6 e4 78. Kg7 e3 79. Kf8 e2 80. Ke8 e1=Q+ 81. Kd7 Ke4 82. Ke6 f3 83. Ke7 f2 84. Kf6 Kd5 85. Kg5 f1=Q 86. Kh5 Qg3 87. Kh6 Qfh3#) 75... Ke3 76. Ra3+ Ke2 77. Ra2+ Ke3 78. Ra3+ $11) (72... Rf1 $142 73. Ra3+ Kxe4 74. Ra4+ Ke3) 73. Ra4 {[%emt 0:00:06]} Rc2 {[%emt 0:00:08][%cal Oh7h5]} 74. Kf5 {[%emt 0:00:05]} Rc5 {[%emt 0:00:02]} (74... Ke2 $142 75. Ra1 f3 76. Rh1 f2 77. Rh2 Ke1 78. Ke6 Re2 (78... f1=R 79. Rxc2 Rf2 80. Rc3 $14) 79. Rxh7 f1=Q (79... f1=R $2 80. Kxe5 Kd2 81. Rd7+ Ke3 82. Ra7 $19) (79... Rxe4 $2 80. Rb7 $19) 80. Rh8 Rxe4 81. Ke7 Rg4 82. Ra8 Rg7+ 83. Kd6 Qd3+ (83... Qf6+ {ist ein Selbstmatt.} 84. Kc5 Rc7+ 85. Kd5 Qc6+ 86. Kxe5 Re7+ 87. Kf5 Qe6+ 88. Kg5 Rg7+ 89. Kf4 Rg4+ 90. Kf3 Qe4#) 84. Ke6 Rg6+ 85. Kf7 Qf5+ 86. Ke7 Qe6+ (86... Qf6+ 87. Ke8 Rg8+ 88. Kd7 Rg7+ 89. Ke8 Qe7#) 87. Kd8 Rg8+ (87... Qd5+ {führt zum Matt.} 88. Ke7 Qxa8 89. Kf7 Qg8+ 90. Ke7 Qh7+ 91. Kf8 Rg8#) 88. Kc7 Rg7+ 89. Kd8 Qg8#) 75. Ra3+ {[%emt 0:00:08]} Kf2 {[%emt 0:00:03] ( -> ...f3)} 76. Rh3 {[%emt 0:00:05]} Kg2 {[%emt 0:00:07] Schwarz setzt Matt.} 77. Rxh7 {[%emt 0:00:02]} f3 {[%emt 0:00:00]} 78. Rg7+ {[%emt 0:00:20]} Kf1 {[%emt 0:00:02]} 79. Kg4 {[%emt 0:00:07]} f2 {[%emt 0:00:02]} 80. Kg3 {[%emt 0:00:05]} Ke2 {[%emt 0:00:04] Eine wilde Partie.   Gewichteter Fehlerwert: Weiß=0.31/Schwarz=0.26 (präzise) .  Verlustzug:     	---       	Schwarz=2     Gewinn verpasst:   	Weiß=2     	---        Fehler:       	Weiß=5     	Schwarz=3     Ungenau:       	Weiß=7     	Schwarz=2     OK:         	Weiß=24    	Schwarz=22    Bester:       	Weiß=3     	Schwarz=4     Stark:        	---       	Schwarz=3     Brilliant:      	Weiß=1     	---} 0-1

[Event "Grand Prix Romania 1st Stage 2024"]
[Site "Bucuresti"]
[Date "2024.03.23"]
[Round "3.25"]
[White "Castellanos Rodriguez, Renier"]
[Black "Baranciuc, Alexandr"]
[Result "0-1"]
[ECO "A07"]
[WhiteElo "2469"]
[BlackElo "2336"]
[Annotator "TA"]
[PlyCount "102"]
[EventDate "2024.03.20"]
[EventType "swiss"]
[EventCountry "ROU"]
[SourceTitle "playchess.com"]
[Source "ChessBase"]
[SourceQuality "1"]
[TimeControl "900+5"]

{[%evp 15,102,35,41,30,34,16,46,51,55,55,66,56,64,53,110,102,102,102,102,102,120,112,133,125,231,112,288,295,295,293,286,287,402,298,275,221,252,223,184,230,221,1,1,6,368,386,513,535,520,0,0,-199,-198,-218,-209,-204,-184,-671,-69,-685,-674,-629,0,-650,0,-629,-643,-640,-643,-800,-640,-621,-661,-902,-853,-825,0,-900,-821,-824,-816,-5489,-5489,-29988,-29989,-29991,-29992,-29995,-29992]} 1. Nf3 {[%emt 0:00:03]} d5 {[%emt 0:00:00]} 2. g3 {[%emt 0:00:02]} Bf5 {[%emt 0:00:02]} 3. Bg2 {[%emt 0:00:02]} c6 {[%emt 0:00:01]} 4. O-O {[%emt 0:00:07]} e6 {[%emt 0:00:01]} 5. d3 {[%emt 0:00:03]} h6 {[%emt 0:00:01]} 6. c4 {[%emt 0:01:08] A07: Réti Opening: New York and Capablanca Systems.} dxc4 {[%emt 0:00:02]} 7. d4 {[%emt 0:00:02]} Nf6 {[%emt 0:00:30]} 8. Nbd2 {[%emt 0:00:14]} Nbd7 {[%emt 0:00:40]} 9. Nxc4 {[%emt 0:00:04]} Be7 {[%emt 0:00:10]} 10. Qb3 $146 {[%emt 0:00:18]} ({Predecessor:} 10. Bf4 Nb6 11. Na5 Qc8 12. Nd2 O-O 13. e4 Bg6 14. Qe2 Rd8 15. Ndb3 Rd7 16. Rac1 {1-0 Chu,W (2431)-Li,J (1819) CHN-chT Nanjing 2023 (5.3)}) 10... Nb6 {[%emt 0:00:31]} 11. Na5 {[%emt 0:00:11]} Qc8 {[%emt 0:00:29]} 12. Ne5 {[%emt 0:00:26]} Be4 {[%emt 0:01:01]} 13. f3 {[%emt 0:00:38]} Bh7 $1 {[%emt 0:00:09]} (13... Bd5 $2 14. Qc2 $18) 14. e4 {[%emt 0:00:04]} O-O {[%emt 0:00:04]} ({Black should play} 14... Nfd7 $1 $14) 15. Be3 $16 {[%emt 0:00:02]} Nfd7 {[%emt 0:01:11]} 16. Nd3 {[%emt 0:00:10]} Qc7 {[%emt 0:00:27]} 17. Rfd1 {[%emt 0:00:21]} Rad8 {[%emt 0:00:35]} 18. Bf4 {[%emt 0:00:13]} Qc8 {[%emt 0:00:11]} 19. Rac1 {[%emt 0:00:03]} Bf6 {[%emt 0:00:26]} (19... Rfe8 $16 20. Kh1 g5) 20. Be3 {[%emt 0:00:23]} (20. Nc5 $1 $18 {[%cal Rc5b7] and White stays clearly on top.} Nxc5 21. dxc5) 20... Rfe8 $2 {[%emt 0:00:09]} (20... Qc7 $16 {keeps fighting.} 21. Qa3 Nc8) 21. Nc5 $1 $18 {[%emt 0:00:11]} Nxc5 {[%emt 0:04:00]} 22. dxc5 {[%emt 0:00:02]} (22. Rxc5 Rd7 $14) 22... Rxd1+ {[%emt 0:00:20]} 23. Rxd1 {[%emt 0:00:07]} Na8 {[%emt 0:01:18]} (23... Nd7 $142 24. Qxb7 (24. Nxb7 Qc7 $18) 24... Nb8) 24. Nxb7 {[%emt 0:00:18]} Qc7 {[%emt 0:00:04]} 25. Bf4 {[%emt 0:02:27]} e5 {[%emt 0:00:20]} 26. Bh3 $1 {[%emt 0:00:01]} exf4 {[%emt 0:00:37]} 27. Rd7 {[%emt 0:00:02]} Qe5 {[%emt 0:00:00]} 28. Qxf7+ $2 {[%emt 0:00:08]} (28. Nd6 $1 $18 Bg6 (28... Qxc5+ 29. Kg2 $18) 29. Nxe8 (29. Nxf7 $2 Qxc5+ 30. Kg2 Kh7 $19) 29... Qxe8 30. gxf4 (30. Rxa7 Kh7 $11)) 28... Kh8 $11 {[%emt 0:00:01]} 29. gxf4 {[%emt 0:00:03]} Qb8 $2 {[%emt 0:00:24][%mdl 8192]} (29... Qxf4 $11 {and Black is okay.} 30. Qxe8+ Bg8) 30. Nd6 $1 $18 {[%emt 0:00:41]} Rf8 {[%emt 0:00:10]} 31. Rb7 $1 {[%emt 0:00:08]} Qd8 {[%emt 0:00:28] [#]} 32. e5 $2 {[%emt 0:00:12]} (32. Be6 $1 $18) 32... Bxe5 $1 $11 {[%emt 0:00:52]} 33. fxe5 $2 {[%emt 0:00:33]} (33. Rd7 $11 {and White has nothing to worry.} Bd4+ 34. Kh1) 33... Qg5+ $19 {[%emt 0:00:00]} 34. Bg4 {[%emt 0:00:30]} Qe3+ {[%emt 0:00:06]} (34... Rxf7 $2 {loses.} 35. Nxf7+ Kg8 36. Nxg5 $18) 35. Kg2 {[%emt 0:00:05] [#]} Qe2+ $1 {[%emt 0:00:41]} 36. Kh3 $2 {[%emt 0:00:24]} (36. Kg3 Rxf7 37. Nxf7+ Kg8 38. Be6) 36... Qf1+ $2 {[%emt 0:00:00]} ({Black should try} 36... Rxf7 $19 37. Nxf7+ Kg8) 37. Kh4 $2 {[%emt 0:00:43][%mdl 8192]} (37. Kg3 $15 Qg1+ (37... Rxf7 $2 38. Nxf7+ Kg8 39. Be6 $17) 38. Kh3 Qf1+ (38... Rxf7 39. Nxf7+ Kg8 40. Be6 $17) 39. Kg3 Rxf7 40. Nxf7+ Kg8 41. Be6) 37... Qf2+ $19 {[%emt 0:00:04]} 38. Kh3 {[%emt 0:00:06]} Qf1+ {[%emt 0:00:07]} 39. Kh4 $1 {[%emt 0:00:09]} Qf2+ {[%emt 0:00:39]} 40. Kh3 {[%emt 0:00:02]} Rxf7 {[%emt 0:00:49]} 41. Rb8+ {[%emt 0:00:51]} Bg8 {[%emt 0:00:01]} 42. Nxf7+ {[%emt 0:06:18]} Kh7 43. Rb7 {[%emt 0:00:00]} Qf1+ {[%emt 0:00:09]} 44. Kh4 {[%emt 0:00:00]} Qe1+ {[%emt 0:00:03]} 45. Kh3 {[%emt 0:00:00]} Qf1+ {[%emt 0:00:01]} 46. Kh4 $1 {[%emt 0:00:00]} Bxf7 {[%emt 0:00:27]} 47. Rxf7 {[%emt 0:00:00]} Qe1+ {[%emt 0:00:01]} 48. Kh5 {[%emt 0:00:00]} Qxe5+ {[%emt 0:00:01]} 49. Bf5+ {[%emt 0:00:00]} Kg8 {[%emt 0:00:04]} 50. Kg6 {[%emt 0:00:00]} Nc7 {[%emt 0:00:14]} 51. f4 {[%emt 0:00:00]} Qe8 {[%emt 0:00:04]} 0-1

[Event "Grand Prix Romania 1st Stage 2024"]
[Site "Bucuresti"]
[Date "2024.03.23"]
[Round "3.26"]
[White "Girmacea, Bogdan"]
[Black "Rozen, Eytan"]
[Result "0-1"]
[ECO "D02"]
[WhiteElo "2076"]
[BlackElo "2487"]
[Annotator "TA"]
[PlyCount "58"]
[EventDate "2024.03.20"]
[EventType "swiss"]
[EventCountry "ROU"]
[SourceTitle "playchess.com"]
[Source "ChessBase"]
[SourceQuality "1"]
[TimeControl "900+5"]

{[%evp 9,58,0,0,0,5,4,16,0,0,0,2,22,10,10,10,22,8,-19,-28,-13,-16,-70,-2,-195,-208,-201,-98,-101,-102,-95,-61,-64,-62,-109,-56,-75,-39,-29,0,-8,-2,-71,-70,-56,0,-70,-68,-81,-42,-110,-141]} 1. d4 {[%emt 0:00:03]} Nf6 {[%emt 0:00:17]} 2. Nf3 {[%emt 0:00:06]} g6 {[%emt 0:00:12]} 3. Nbd2 {[%emt 0:00:25]} d5 {[%emt 0:00:10]} 4. e3 {[%emt 0:00:03]} Bg7 {[%emt 0:00:03]} 5. b4 {[%emt 0:00:02]} a5 {[%emt 0:00:01]} 6. b5 {[%emt 0:00:02]} c5 {[%emt 0:00:02]} 7. bxc6 {[%emt 0:00:09]} Nxc6 {[%emt 0:00:06]} 8. a4 {[%emt 0:00:57] The position is equal.} O-O {[%emt 0:00:10]} 9. Ba3 {[%emt 0:00:53]} Re8 {[%emt 0:00:30]} 10. Bb5 {[%emt 0:00:23]} Ne4 {[%emt 0:00:10]} 11. Nxe4 {[%emt 0:00:36]} dxe4 {[%emt 0:00:01]} 12. Nd2 {[%emt 0:00:05]} e5 {[%emt 0:00:01]} 13. c3 {[%emt 0:00:17]} (13. Nxe4 $2 exd4 14. Nd6 Re6 15. Nxc8 Rxc8 $19 (15... Qxc8 $2 16. Bb2 $19)) 13... exd4 {[%emt 0:00:15]} 14. cxd4 {[%emt 0:00:07]} Qg5 $1 {[%emt 0:00:02]} 15. g3 {[%emt 0:04:27]} (15. Kf1 $11) 15... Bg4 {[%emt 0:00:18] Black has more active pieces.} (15... Bh3 $15 16. Rc1 Bxd4 17. Bxc6 (17. exd4 $2 e3 $19) 17... bxc6 18. exd4 e3) 16. Be2 $2 {[%emt 0:00:30]} (16. h4 $1 $11 Qf5 17. Qb1) 16... Bxe2 $1 $19 {[%emt 0:00:55]} 17. Qxe2 {[%emt 0:00:04] [#]} Bxd4 $1 {[%emt 0:00:49][%mdl 512]} 18. Rb1 $17 {[%emt 0:01:26][%cal Oe1g1]} (18. exd4 $2 {too greedy.} e3 19. O-O-O (19. fxe3 $2 Rxe3 20. Bc5 Rae8 $19) 19... Rac8 $19 (19... exd2+ 20. Qxd2 Qd5 21. Kb2 $19)) 18... Bc3 {[%emt 0:00:10]} 19. O-O {[%emt 0:01:04]} Bxd2 {[%emt 0:00:01]} 20. Qxd2 {[%emt 0:00:01][%cal Oa3b2]} Ne5 {[%emt 0:00:02] Strongly threatening ...Nf3+.} (20... Rad8 {simplifies} 21. Qc2 Rc8 22. Rxb7 Qf5) 21. Kg2 {[%emt 0:00:36][%cal Oa3b2] [#]} Nf3 {[%emt 0:00:52]} (21... Red8 $1 $17 {[%cal Rd8d2]} 22. Qc3 Rdc8) 22. Qa2 $15 {[%emt 0:01:25]} Qh5 {[%emt 0:01:29][%csl Gf3][%cal Rh5h2]} 23. h3 {[%emt 0:00:39]} Rab8 {[%emt 0:00:46]} 24. Rb5 {[%emt 0:01:05]} Re5 $40 {[%emt 0:01:00][%cal Be8e5,Be5b5,Bb5d5,Bd5d1][%mdl 160] Black has some attack. Dancing on a razor blade.} 25. Bd6 {[%emt 0:00:26]} (25. Rfb1 $11) 25... Rxb5 $17 {[%emt 0:00:16]} 26. Bxb8 {[%emt 0:00:26]} Qd5 {[%emt 0:01:11]} ({Black should play} 26... Rc5 $15 27. g4 Qg5) 27. Qxd5 {[%emt 0:00:33]} (27. Qa1 $1 $11 Rb3 28. Rc1) 27... Rxd5 $15 {[%emt 0:00:01]} 28. Rb1 {[%emt 0:00:11]} h5 {[%emt 0:00:03]} 29. Rxb7 {[%emt 0:00:13]} (29. h4 $15) 29... Rd1 {[%emt 0:00:18] Weighted Error Value: White=0.28 (precise) /Black=0.24 (precise) .  Loses game:     	White=1     	---        Mistake:       	White=4     	Black=4      Inaccurate:     	White=1     	Black=4      OK:         	White=8     	Black=6      Best:        	White=1     	Black=4      Strong:       	---       	Black=1} 0-1

[Event "Grand Prix Romania 1st Stage 2024"]
[Site "Bucuresti"]
[Date "2024.03.23"]
[Round "3.27"]
[White "Istratescu, Andrei"]
[Black "Onut, Simeon"]
[Result "1-0"]
[ECO "A35"]
[WhiteElo "2374"]
[BlackElo "1983"]
[Annotator "RC"]
[PlyCount "89"]
[EventDate "2024.03.20"]
[EventType "swiss"]
[EventCountry "ROU"]
[SourceTitle "playchess.com"]
[Source "ChessBase"]
[SourceQuality "1"]
[TimeControl "900+5"]

1. c4 {[%emt 0:00:04]} c5 {[%emt 0:00:01]} 2. Nc3 {[%emt 0:00:10]} Nc6 {[%emt 0:00:03]} 3. Nf3 {[%emt 0:00:02]} g6 {[%emt 0:00:01]} 4. e3 {[%emt 0:00:03]} e6 {[%emt 0:00:03]} 5. d4 {[%emt 0:00:03]} cxd4 {[%emt 0:00:01]} 6. exd4 {[%emt 0:00:03]} d5 {[%emt 0:00:04]} 7. cxd5 {[%emt 0:00:14]} exd5 {[%emt 0:00:02]} 8. Bb5 {[%emt 0:00:04]} Bg7 {[%emt 0:00:06]} 9. Bxc6+ {[%emt 0:02:49]} bxc6 {[%emt 0:00:03]} 10. O-O {[%emt 0:00:02]} Ne7 {[%emt 0:00:06]} 11. h3 {[%emt 0:00:03]} O-O {[%emt 0:00:03]} 12. Re1 {[%emt 0:00:03]} Nf5 {[%emt 0:00:23]} 13. Bf4 {[%emt 0:00:11]} Ba6 {[%emt 0:00:51]} 14. Be5 {[%emt 0:00:09]} Qb6 {[%emt 0:01:12]} 15. Bxg7 {[%emt 0:00:06]} Kxg7 {[%emt 0:00:09]} 16. Na4 {[%emt 0:00:03]} Qd8 {[%emt 0:01:13]} 17. Nc5 {[%emt 0:00:04]} Bc8 {[%emt 0:00:08]} 18. Rc1 {[%emt 0:02:20]} Rb8 {[%emt 0:00:47]} 19. b3 {[%emt 0:00:02]} Re8 {[%emt 0:00:44]} 20. Rxe8 {[%emt 0:00:11]} Qxe8 {[%emt 0:00:02]} 21. Qd2 {[%emt 0:00:03]} Qd8 {[%emt 0:00:22]} 22. Qf4 {[%emt 0:00:25]} Rb6 {[%emt 0:00:09]} 23. Re1 {[%emt 0:00:09]} Nd6 {[%emt 0:01:41]} 24. Qe5+ {[%emt 0:01:16]} Qf6 {[%emt 0:00:11]} 25. Qe7 {[%emt 0:00:19]} Nb7 {[%emt 0:01:27]} 26. Na4 {[%emt 0:00:36]} Rb5 {[%emt 0:00:18]} 27. Qxf6+ {[%emt 0:00:08]} Kxf6 {[%emt 0:00:02]} 28. Rc1 {[%emt 0:00:27]} Nd8 {[%emt 0:00:31]} 29. Ne5 {[%emt 0:00:07]} Bb7 {[%emt 0:00:28]} 30. Nc5 {[%emt 0:00:09]} Ba8 {[%emt 0:00:14]} 31. Re1 {[%emt 0:00:21]} Ne6 {[%emt 0:00:26]} 32. Ned7+ {[%emt 0:00:34]} Ke7 {[%emt 0:00:22]} 33. Nxe6 {[%emt 0:00:01]} Kxd7 {[%emt 0:00:03]} 34. Nf8+ {[%emt 0:00:06]} Kd8 {[%emt 0:00:03]} 35. Nxh7 {[%emt 0:00:02]} Rb4 {[%emt 0:00:12]} 36. Ng5 {[%emt 0:00:41]} Rxd4 {[%emt 0:00:15]} 37. Nxf7+ {[%emt 0:00:01]} Kc7 {[%emt 0:00:01]} 38. Ne5 {[%emt 0:00:02]} g5 {[%emt 0:00:13]} 39. Nf3 {[%emt 0:00:03]} Rd3 {[%emt 0:00:11]} 40. Nxg5 {[%emt 0:00:02]} Rd2 {[%emt 0:00:01]} 41. h4 {[%emt 0:00:05]} c5 {[%emt 0:00:14]} 42. h5 {[%emt 0:00:01]} Rxa2 {[%emt 0:00:26]} 43. h6 {[%emt 0:00:02]} Ra6 {[%emt 0:00:02]} 44. h7 {[%emt 0:00:05]} Rh6 {[%emt 0:00:03]} 45. Re8 {[%emt 0:00:02]} 1-0